fUST/lending_fUST_20250213
["ID","MTS","AMOUNT","RATE_DAILY","PERIOD"]
[352899526,1739395842208,-2200.31,0.00013698,2]
[352899527,1739395842217,-1036.07,0.00013698,2]
[352899529,1739395842226,-656.36,0.00013698,2]
[352899530,1739395842235,-192.704565,0.00013699,2]
[352899531,1739395842245,-1022.84,0.00013835,2]
[352899532,1739395842255,-500.0,0.00013835,2]
[352899533,1739395842264,-597.47,0.00013835,2]
[352899534,1739395842273,-2200.31,0.00013835,2]
[352899535,1739395842282,-1036.07,0.00013835,2]
[352899536,1739395842292,-656.36,0.00013835,2]
[352899538,1739395842301,-1022.84,0.00013972,2]
[352899539,1739395842310,-500.0,0.00013972,2]
[352899541,1739395842319,-597.47,0.00013972,2]
[352899543,1739395842328,-2200.31,0.00013972,2]
[352899545,1739395842337,-1036.07,0.00013972,2]
[352899547,1739395842346,-656.36,0.00013972,2]
[352899549,1739395842355,-12799.12902002,0.00013993,2]
[352899550,1739395842365,-12799.12902002,0.00013997,2]
[352899552,1739395842375,-12799.12902002,0.00014,2]
[352899554,1739395842384,-240.191,0.00014069,2]
[352899556,1739395842394,-1022.90384311,0.00014109,2]
[352899557,1739395842403,-248.89510465,0.00014109,2]
[352899559,1739395842412,-597.5927703,0.00014109,2]
[352899560,1739395842421,-2200.36433076,0.00014109,2]
[352899561,1739395842431,-1036.07078712,0.00014109,2]
[352899563,1739395842440,-656.48558088,0.00014109,2]
[352899565,1739395842449,-1500.0,0.00014381,2]
[352899566,1739395842458,-500.0,0.00014499,2]
[352899567,1739395842467,-500.0,0.00014499,2]
[352899569,1739395842476,-582.63805367,0.00014499,2]
[352899571,1739395842486,-466559.35258473,0.000145,2]
[352899573,1739395842495,-600.34659916,0.000145,2]
[352899574,1739395842504,-292.0,0.00014542,2]
[352899576,1739395842513,-14458.0909175,0.00014899,2]
[352899577,1739395842522,-6301.14976744,0.00014998,2]
[352899579,1739395842531,-307973.88016786,0.00015,2]
[352899581,1739395842540,-4808.08044607,0.00015,2]
[352899582,1739395842549,-10000.0,0.00015,2]
[352899584,1739395842559,-10286.93934902,0.00015,2]
[352899586,1739395842568,-166.0,0.00015068,2]
[352899587,1739395842577,-740.63070176,0.000158,2]
[352899588,1739395842586,-1998.24,0.000159,2]
[352899589,1739395842595,-150.0,0.00016,2]
[352899590,1739395842605,-500.0,0.00016148,2]
[352899591,1739395842614,-608.46,0.00016164,2]
[352899592,1739395842623,-154.53,0.0001638,2]
[352899593,1739395842633,-500.0,0.00016438,2]
[352899595,1739395842642,-512.5,0.00016476,2]
[352899596,1739395842651,-600.0,0.00016554,2]
[352899598,1739395842660,-4309.71589258,0.000166,3]
[352899600,1739395842670,-151.0,0.000166,2]
[352899602,1739395842685,-413.114,0.00016608,2]
[352899604,1739395842694,-153.0,0.00016716,2]
[352899605,1739395842704,-299.537,0.0001673,2]
[352899606,1739395842713,-92796.44490926,0.0001677,2]
[352899607,1739395842723,-351.4651022,0.00016787,2]
[352899608,1739395842733,-1000.0,0.000168,2]
[352899609,1739395842742,-5901.44473678,0.000168,2]
[352899610,1739395842752,-6559.54600587,0.000168,7]
[352899612,1739395842762,-13269.26255483,0.00016843,2]
[352899614,1739395842773,-152.0,0.00016963,2]
[352899615,1739395842782,-152.0,0.00016963,2]
[352899616,1739395842791,-152.0,0.00016963,2]
[352899617,1739395842800,-152.0,0.00016963,2]
[352899618,1739395842809,-152.0,0.00016963,2]
[352899619,1739395842819,-214.3,0.00016963,2]
[352899620,1739395842828,-500.0,0.00016986,3]
[352899621,1739395842838,-3595.54670377,0.0001699,2]
[352899622,1739395842847,-162.0,0.00016992,2]
[352899623,1739395842857,-162.0,0.00016992,2]
[352899624,1739395842866,-162.0,0.00016992,2]
[352899625,1739395842878,-162.0,0.00016992,2]
[352899626,1739395842887,-162.0,0.00016992,2]
[352899627,1739395842897,-162.0,0.00016992,2]
[352899628,1739395842906,-162.0,0.00016992,2]
[352899629,1739395842916,-162.0,0.00016992,2]
[352899630,1739395842925,-162.0,0.00016992,2]
[352899631,1739395842934,-162.0,0.00016992,2]
[352899632,1739395842943,-162.0,0.00016992,2]
[352899634,1739395842954,-173.87,0.00016992,2]
[352899635,1739395842963,-152.0,0.00016992,2]
[352899636,1739395842973,-152.0,0.00016992,2]
[352899637,1739395842983,-152.0,0.00016992,2]
[352899638,1739395842992,-152.0,0.00016992,2]
[352899639,1739395843001,-152.0,0.00016992,2]
[352899640,1739395843011,-152.0,0.00016992,2]
[352899641,1739395843020,-152.0,0.00016992,2]
[352899642,1739395843030,-152.0,0.00016992,2]
[352899643,1739395843039,-152.0,0.00016992,2]
[352899644,1739395843048,-152.0,0.00016992,2]
[352899645,1739395843058,-152.0,0.00016992,2]
[352899646,1739395843067,-152.0,0.00016992,2]
[352899647,1739395843077,-152.0,0.00016992,2]
[352899648,1739395843086,-152.0,0.00016992,2]
[352899649,1739395843096,-152.0,0.00016992,2]
[352899650,1739395843105,-152.0,0.00016992,2]
[352899651,1739395843115,-152.0,0.00016992,2]
[352899652,1739395843125,-152.0,0.00016992,2]
[352899653,1739395843135,-258.19,0.00016992,2]
[352899654,1739395843144,-957.63518758,0.00016998,2]
[352899655,1739395843153,-10993.45092298,0.00017,5]
[352899656,1739395843163,-136156.36881042,0.00017,2]
[352899657,1739395843171,-1000.0,0.00017,2]
[352899658,1739395843181,-136156.36881042,0.00017,2]
[352899659,1739395843190,-813.6758024,0.00017,2]
[352899660,1739395843199,-49650.36982926,0.00017,2]
[352899661,1739395843208,-70000.0,0.00017,2]
[352899662,1739395843217,-354.9109976,0.00017041,2]
[352899663,1739395843226,-354.9109976,0.00017041,2]
[352899664,1739395843237,-354.9109976,0.00017041,2]
[352899665,1739395843246,-354.9109976,0.00017041,2]
[352899666,1739395843255,-354.9109976,0.00017041,2]
[352899667,1739395843265,-354.9109976,0.00017041,2]
[352899668,1739395843274,-354.9109976,0.00017041,2]
[352899669,1739395843283,-354.9109976,0.00017041,2]
[352899670,1739395843293,-354.9109976,0.00017041,2]
[352899671,1739395843302,-2154.52708726,0.00017055,2]
[352899672,1739395843311,-172.5364727,0.00017071,2]
[352899673,1739395843320,-2000.0,0.000171,2]
[352899674,1739395843329,-2000.0,0.000171,2]
[352899675,1739395843338,-1000.0,0.000171,4]
[352899676,1739395843349,-157.31,0.000171,31]
[352899677,1739395843358,-157.31,0.000171,31]
[352899678,1739395843367,-157.31,0.000171,31]
[352899679,1739395843377,-157.31,0.000171,31]
[352899680,1739395843386,-157.31,0.000171,31]
[352899681,1739395843396,-157.31,0.000171,31]
[352899682,1739395843405,-157.31,0.000171,31]
[352899683,1739395843415,-192.704565,0.00017123,2]
[352899684,1739395843425,-316.0,0.0001714,2]
[352899685,1739395843434,-354.9109976,0.00017151,2]
[352899686,1739395843444,-492.570698,0.00017157,2]
[352899687,1739395843454,-492.570698,0.00017157,2]
[352899688,1739395843463,-492.570698,0.00017157,2]
[352899689,1739395843472,-492.570698,0.00017157,2]
[352899690,1739395843481,-492.570698,0.00017157,2]
[352899691,1739395843491,-492.570698,0.00017157,2]
[352899692,1739395843500,-492.570698,0.00017157,2]
[352899693,1739395843509,-492.570698,0.00017157,2]
[352899694,1739395843519,-151.0,0.00017157,2]
[352899695,1739395843528,-151.0,0.00017157,2]
[352899696,1739395843537,-151.0,0.00017157,2]
[352899697,1739395843546,-151.0,0.00017157,2]
[352899698,1739395843556,-492.570698,0.00017157,2]
[352899699,1739395843565,-492.570698,0.00017157,2]
[352899700,1739395843574,-492.570698,0.00017157,2]
[352899701,1739395843583,-243.26176,0.00017157,2]
[352899702,1739395843592,-492.570698,0.00017157,2]
[352899703,1739395843602,-492.570698,0.00017157,2]
[352899704,1739395843611,-492.570698,0.00017157,2]
[352899705,1739395843620,-492.570698,0.00017157,2]
[352899706,1739395843630,-492.570698,0.00017157,2]
[352899707,1739395843640,-151.0,0.00017157,2]
[352899708,1739395843649,-151.0,0.00017157,2]
[352899709,1739395843658,-151.0,0.00017157,2]
[352899710,1739395843668,-151.0,0.00017157,2]
[352899711,1739395843680,-151.0,0.00017157,2]
[352899712,1739395843689,-151.0,0.00017157,2]
[352899713,1739395843699,-242.156523,0.00017157,2]
[352899714,1739395843708,-242.156523,0.00017157,2]
[352899715,1739395843718,-242.156523,0.00017157,2]
[352899716,1739395843727,-242.156523,0.00017157,2]
[352899717,1739395843736,-242.156523,0.00017157,2]
[352899718,1739395843746,-242.156523,0.00017157,2]
[352899719,1739395843756,-242.156523,0.00017157,2]
[352899720,1739395843765,-242.156523,0.00017157,2]
[352899721,1739395843775,-242.156523,0.00017157,2]
[352899722,1739395843785,-242.156523,0.00017157,2]
[352899723,1739395843795,-242.156523,0.00017157,2]
[352899724,1739395843804,-242.156523,0.00017157,2]
[352899725,1739395843814,-242.156523,0.00017157,2]
[352899726,1739395843823,-242.156523,0.00017157,2]
[352899727,1739395843833,-242.156523,0.00017157,2]
[352899728,1739395843842,-151.0,0.00017157,2]
[352899729,1739395843851,-151.0,0.00017157,2]
[352899730,1739395843861,-151.0,0.00017157,2]
[352899731,1739395843871,-151.0,0.00017157,2]
[352899732,1739395843880,-151.0,0.00017157,2]
[352899733,1739395843890,-151.0,0.00017157,2]
[352899734,1739395843899,-151.0,0.00017157,2]
[352899735,1739395843909,-151.0,0.00017157,2]
[352899736,1739395843918,-226.086106,0.00017157,2]
[352899737,1739395843928,-226.086106,0.00017157,2]
[352899738,1739395843937,-226.086106,0.00017157,2]
[352899739,1739395843946,-226.086106,0.00017157,2]
[352899740,1739395843956,-226.086106,0.00017157,2]
[352899741,1739395843965,-226.086106,0.00017157,2]
[352899742,1739395843975,-226.086106,0.00017157,2]
[352899743,1739395843985,-226.086106,0.00017157,2]
[352899744,1739395843994,-226.086106,0.00017157,2]
[352899745,1739395844004,-226.086106,0.00017157,2]
[352899746,1739395844013,-226.086106,0.00017157,2]
[352899747,1739395844023,-226.086106,0.00017157,2]
[352899748,1739395844032,-226.086106,0.00017157,2]
[352899749,1739395844043,-226.086106,0.00017157,2]
[352899750,1739395844053,-226.086106,0.00017157,2]
[352899751,1739395844063,-226.086106,0.00017157,2]
[352899752,1739395844073,-151.0,0.00017157,2]
[352899753,1739395844083,-151.0,0.00017157,2]
[352899754,1739395844092,-151.642858,0.00017157,2]
[352899755,1739395844102,-151.0,0.00017157,2]
[352899756,1739395844111,-151.0,0.00017157,2]
[352899757,1739395844122,-151.0,0.00017157,2]
[352899758,1739395844132,-151.0,0.00017157,2]
[352899759,1739395844141,-193.958052,0.00017157,2]
[352899760,1739395844151,-151.0,0.00017158,2]
[352899761,1739395844160,-151.0,0.00017158,2]
[352899762,1739395844170,-151.0,0.00017158,2]
[352899763,1739395844179,-193.418912,0.00017158,2]
[352899764,1739395844188,-151.0,0.00017158,2]
[352899765,1739395844198,-151.0,0.00017158,2]
[352899766,1739395844208,-151.0,0.00017158,2]
[352899767,1739395844218,-151.0,0.00017158,2]
[352899768,1739395844228,-151.0,0.00017158,2]
[352899769,1739395844237,-151.0,0.00017158,2]
[352899770,1739395844247,-151.0,0.00017158,2]
[352899771,1739395844256,-151.0,0.00017158,2]
[352899772,1739395844265,-151.0,0.00017158,2]
[352899773,1739395844274,-156.766901,0.00017158,2]
[352899774,1739395844284,-151.0,0.00017158,2]
[352899775,1739395844294,-158.466381,0.00017158,2]
[352899776,1739395844303,-151.0,0.00017158,2]
[352899777,1739395844313,-151.0,0.00017158,2]
[352899778,1739395844323,-151.0,0.00017158,2]
[352899779,1739395844333,-151.0,0.00017158,2]
[352899780,1739395844342,-285.239364,0.00017158,2]
[352899781,1739395844352,-151.0,0.00017158,2]
[352899782,1739395844361,-151.0,0.00017158,2]
[352899783,1739395844371,-151.0,0.00017158,2]
[352899784,1739395844381,-151.0,0.00017158,2]
[352899785,1739395844390,-151.0,0.00017158,2]
[352899786,1739395844400,-151.0,0.00017158,2]
[352899787,1739395844410,-151.0,0.00017158,2]
[352899788,1739395844420,-151.0,0.00017158,2]
[352899789,1739395844430,-215.487113,0.00017158,2]
[352899790,1739395844439,-151.0,0.00017158,2]
[352899791,1739395844449,-151.0,0.00017158,2]
[352899792,1739395844459,-151.0,0.00017158,2]
[352899793,1739395844470,-151.0,0.00017158,2]
[352899794,1739395844480,-151.0,0.00017158,2]
[352899795,1739395844490,-151.0,0.00017158,2]
[352899796,1739395844500,-669.235265,0.00017158,2]
[352899797,1739395844509,-669.235265,0.00017158,2]
[352899798,1739395844519,-669.235265,0.00017158,2]
[352899799,1739395844529,-669.235265,0.00017158,2]
[352899800,1739395844539,-669.235265,0.00017158,2]
[352899801,1739395844549,-669.235265,0.00017158,2]
[352899802,1739395844559,-669.235265,0.00017158,2]
[352899803,1739395844671,-669.235265,0.00017158,2]
[352899804,1739395844688,-669.235265,0.00017158,2]
[352899805,1739395844699,-669.235265,0.00017158,2]
[352899806,1739395844708,-669.235265,0.00017158,2]
[352899807,1739395844718,-669.235265,0.00017158,2]
[352899808,1739395844728,-669.235265,0.00017158,2]
[352899809,1739395844738,-669.235265,0.00017158,2]
[352899810,1739395844748,-669.235265,0.00017158,2]
[352899811,1739395844760,-669.235265,0.00017158,2]
[352899812,1739395844770,-151.0,0.00017158,2]
[352899813,1739395844779,-151.0,0.00017158,2]
[352899814,1739395844789,-151.0,0.00017158,2]
[352899815,1739395844798,-151.0,0.00017158,2]
[352899816,1739395844808,-151.0,0.00017158,2]
[352899817,1739395844818,-151.0,0.00017158,2]
[352899818,1739395844827,-151.0,0.00017158,2]
[352899819,1739395844838,-151.0,0.00017158,2]
[352899820,1739395844848,-151.0,0.00017158,2]
[352899821,1739395844858,-151.0,0.00017158,2]
[352899822,1739395844869,-151.0,0.00017158,2]
[352899823,1739395844878,-151.0,0.00017158,2]
[352899824,1739395844887,-151.0,0.00017158,2]
[352899825,1739395844897,-151.0,0.00017158,2]
[352899826,1739395844906,-151.0,0.00017158,2]
[352899827,1739395844915,-151.0,0.00017158,2]
[352899828,1739395844925,-293.885658,0.00017158,2]
[352899829,1739395844934,-298.665351,0.00017158,2]
[352899830,1739395844944,-724.046257,0.00017158,2]
[352899831,1739395844953,-724.046257,0.00017158,2]
[352899832,1739395844963,-151.0,0.00017158,2]
[352899833,1739395844972,-724.046257,0.00017158,2]
[352899834,1739395844983,-151.0,0.00017158,2]
[352899835,1739395844992,-724.046257,0.00017158,2]
[352899836,1739395845002,-151.0,0.00017158,2]
[352899837,1739395845012,-724.046257,0.00017158,2]
[352899838,1739395845022,-151.0,0.00017158,2]
[352899839,1739395845032,-724.046257,0.00017158,2]
[352899840,1739395845043,-151.0,0.00017158,2]
[352899841,1739395845053,-724.046257,0.00017158,2]
[352899842,1739395845063,-151.0,0.00017158,2]
[352899843,1739395845073,-724.046257,0.00017158,2]
[352899844,1739395845083,-151.0,0.00017158,2]
[352899845,1739395845092,-224.954777,0.00017158,2]
[352899846,1739395845101,-724.046257,0.00017158,2]
[352899847,1739395845111,-724.046257,0.00017158,2]
[352899848,1739395845121,-724.046257,0.00017158,2]
[352899849,1739395845131,-724.046257,0.00017158,2]
[352899850,1739395845142,-724.046257,0.00017158,2]
[352899851,1739395845152,-724.046257,0.00017158,2]
[352899852,1739395845162,-724.046257,0.00017158,2]
[352899853,1739395845173,-724.046257,0.00017158,2]
[352899854,1739395845184,-450.647955,0.00017158,2]
[352899855,1739395845194,-450.647955,0.00017158,2]
[352899856,1739395845203,-450.647955,0.00017158,2]
[352899857,1739395845212,-450.647955,0.00017158,2]
[352899858,1739395845222,-450.647955,0.00017158,2]
[352899859,1739395845232,-450.647955,0.00017158,2]
[352899860,1739395845242,-450.647955,0.00017158,2]
[352899861,1739395845252,-450.647955,0.00017158,2]
[352899862,1739395845261,-450.647955,0.00017158,2]
[352899863,1739395845271,-450.647955,0.00017158,2]
[352899864,1739395845282,-450.647955,0.00017158,2]
[352899865,1739395845292,-450.647955,0.00017158,2]
[352899866,1739395845301,-450.647955,0.00017158,2]
[352899867,1739395845311,-450.647955,0.00017158,2]
[352899868,1739395845321,-450.647955,0.00017158,2]
[352899869,1739395845330,-450.647955,0.00017158,2]
[352899870,1739395845340,-289.293899,0.00017158,2]
[352899871,1739395845350,-289.293899,0.00017158,2]
[352899872,1739395845360,-289.293899,0.00017158,2]
[352899873,1739395845370,-289.293899,0.00017158,2]
[352899874,1739395845380,-289.293899,0.00017158,2]
[352899875,1739395845390,-289.293899,0.00017158,2]
[352899876,1739395845399,-289.293899,0.00017158,2]
[352899877,1739395845409,-289.293899,0.00017158,2]
[352899878,1739395845419,-289.293899,0.00017158,2]
[352899879,1739395845429,-289.293899,0.00017158,2]
[352899880,1739395845438,-289.293899,0.00017158,2]
[352899881,1739395845447,-289.293899,0.00017158,2]
[352899882,1739395845457,-289.293899,0.00017158,2]
[352899883,1739395845466,-289.293899,0.00017158,2]
[352899884,1739395845476,-289.293899,0.00017158,2]
[352899885,1739395845485,-289.293899,0.00017158,2]
[352899886,1739395845495,-1500.0,0.00017158,7]
[352899887,1739395845504,-1500.0,0.00017158,7]
[352899888,1739395845514,-1500.0,0.00017158,7]
[352899889,1739395845524,-1500.0,0.00017158,7]
[352899891,1739395845533,-1500.0,0.00017158,7]
[352899893,1739395845542,-1500.0,0.00017158,7]
[352899895,1739395845552,-1500.0,0.00017158,7]
[352899897,1739395845562,-1500.0,0.00017158,7]
[352899899,1739395845571,-1500.0,0.00017158,7]
[352899900,1739395845581,-1500.0,0.00017158,7]
[352899902,1739395845590,-1500.0,0.00017158,7]
[352899904,1739395845600,-1500.0,0.00017158,7]
[352899905,1739395845609,-1500.0,0.00017158,7]
[352899907,1739395845620,-1500.0,0.00017158,7]
[352899909,1739395845629,-1500.0,0.00017158,7]
[352899911,1739395845640,-1500.0,0.00017158,7]
[352899913,1739395845649,-1500.0,0.00017158,7]
[352899915,1739395845659,-1500.0,0.00017158,7]
[352899917,1739395845668,-1500.0,0.00017158,7]
[352899918,1739395845681,-1500.0,0.00017158,7]
[352899920,1739395845690,-1500.0,0.00017158,7]
[352899922,1739395845700,-1500.0,0.00017158,7]
[352899924,1739395845709,-1500.0,0.00017158,7]
[352899926,1739395845719,-1500.0,0.00017158,7]
[352899928,1739395845728,-1500.0,0.00017158,7]
[352899930,1739395845738,-1500.0,0.00017158,7]
[352899932,1739395845748,-1500.0,0.00017158,7]
[352899934,1739395845759,-1500.0,0.00017158,7]
[352899936,1739395845769,-1500.0,0.00017158,7]
[352899937,1739395845779,-1500.0,0.00017158,7]
[352899939,1739395845788,-1500.0,0.00017158,7]
[352899941,1739395845798,-1500.0,0.00017158,7]
[352899943,1739395845807,-1096.121739,0.00017158,7]
[352899945,1739395845817,-1231.561486,0.00017158,2]
[352899947,1739395845826,-1231.561486,0.00017158,2]
[352899949,1739395845836,-1231.561486,0.00017158,2]
[352899951,1739395845846,-1231.561486,0.00017158,2]
[352899953,1739395845856,-1231.561486,0.00017158,2]
[352899955,1739395845865,-1231.561486,0.00017158,2]
[352899957,1739395845875,-1231.561486,0.00017158,2]
[352899959,1739395845885,-1231.561486,0.00017158,2]
[352899961,1739395845894,-1231.561486,0.00017158,2]
[352899963,1739395845903,-1231.561486,0.00017158,2]
[352899965,1739395845913,-1231.561486,0.00017158,2]
[352899967,1739395845922,-1231.561486,0.00017158,2]
[352899969,1739395845932,-1231.561486,0.00017158,2]
[352899971,1739395845942,-1231.561486,0.00017158,2]
[352899972,1739395845951,-1231.561486,0.00017158,2]
[352899975,1739395845961,-1231.561486,0.00017158,2]
[352899978,1739395845970,-151.0,0.00017158,2]
[352899980,1739395845980,-151.0,0.00017158,2]
[352899982,1739395845990,-151.0,0.00017158,2]
[352899984,1739395845999,-151.0,0.00017158,2]
[352899986,1739395846008,-151.0,0.00017158,2]
[352899988,1739395846018,-151.0,0.00017158,2]
[352899990,1739395846027,-151.0,0.00017158,2]
[352899992,1739395846037,-151.0,0.00017158,2]
[352899994,1739395846047,-151.0,0.00017158,2]
[352899996,1739395846057,-189.602602,0.00017158,2]
[352899998,1739395846066,-7438.69753278,0.0001716,7]
[352899999,1739395846076,-151.0,0.00017161,2]
[352900000,1739395846086,-151.0,0.00017161,2]
[352900001,1739395846096,-151.0,0.00017161,2]
[352900002,1739395846106,-151.0,0.00017161,2]
[352900003,1739395846116,-151.0,0.00017161,2]
[352900005,1739395846126,-151.0,0.00017161,2]
[352900006,1739395846135,-151.0,0.00017161,2]
[352900007,1739395846144,-151.0,0.00017161,2]
[352900008,1739395846153,-151.0,0.00017161,2]
[352900009,1739395846163,-151.0,0.00017161,2]
[352900010,1739395846172,-198.887521,0.00017161,2]
[352900011,1739395846182,-240.949919,0.00017161,2]
[352900012,1739395846192,-151.0,0.00017161,2]
[352900013,1739395846202,-151.0,0.00017161,2]
[352900014,1739395846211,-151.0,0.00017161,2]
[352900015,1739395846220,-151.0,0.00017161,2]
[352900016,1739395846229,-151.0,0.00017161,2]
[352900017,1739395846239,-151.0,0.00017161,2]
[352900018,1739395846248,-151.0,0.00017161,2]
[352900019,1739395846259,-151.0,0.00017161,2]
[352900020,1739395846268,-151.0,0.00017161,2]
[352900021,1739395846277,-155.642172,0.00017161,2]
[352900022,1739395846287,-155.610338,0.00017161,2]
[352900023,1739395846296,-155.610338,0.00017161,2]
[352900024,1739395846306,-155.610338,0.00017161,2]
[352900025,1739395846316,-155.610338,0.00017161,2]
[352900026,1739395846325,-155.610338,0.00017161,2]
[352900027,1739395846335,-155.610338,0.00017161,2]
[352900028,1739395846344,-155.610338,0.00017161,2]
[352900029,1739395846354,-155.610338,0.00017161,2]
[352900030,1739395846363,-155.610338,0.00017161,2]
[352900031,1739395846373,-155.610338,0.00017161,2]
[352900032,1739395846383,-155.610338,0.00017161,2]
[352900033,1739395846392,-155.610338,0.00017161,2]
[352900034,1739395846401,-155.610338,0.00017161,2]
[352900035,1739395846412,-155.610338,0.00017161,2]
[352900036,1739395846422,-155.610338,0.00017161,2]
[352900037,1739395846432,-155.610338,0.00017161,2]
[352900038,1739395846442,-155.610338,0.00017161,2]
[352900039,1739395846452,-155.610338,0.00017161,2]
[352900040,1739395846461,-8407.24810701,0.00017164,5]
[352900041,1739395846470,-1085.63034567,0.00017164,5]
[352900042,1739395846480,-452274.8023076,0.00017164,61]
[352900043,1739395846615,-3220.47775371,0.00010949,2]
[352900044,1739395846626,-547.67952617,0.00010949,2]
[352900045,1739395846638,-3670.5402529,0.00010949,2]
[352900046,1739395846648,-169.68064198,0.000129,2]
[352900047,1739395846657,-67994.34281768,0.00017164,61]
[352900048,1739395846669,-19041.27735414,0.00017164,61]
[352900049,1739395846684,-5000.88433575,0.00017164,61]
[352900050,1739395846695,-422.42827489,0.00017164,61]
[352900051,1739395846711,-1035.63012962,0.000169,2]
[352900052,1739395846722,-15532.44419515,0.00017164,61]
[352900053,1739395846816,-354.9109976,0.00017041,2]
[352900054,1739395846827,-56338.2275029,0.00017164,61]
[352900055,1739395846877,-22.1470974,0.00017164,61]
[352900056,1739395846890,-3962.74412907,0.00017164,61]
[352900057,1739395846902,-3480.0,0.00017164,61]
[352900058,1739395846914,-16364.08865438,0.00017164,61]
[352900070,1739396947222,-11940.7489306,9.802e-05,2]
[352900071,1739396947248,-2363.57128284,0.0001,2]
[352900073,1739396967135,-507.72302559,0.0001,2]
[352900097,1739397032287,-400.0,0.0001,2]
[352900099,1739397032299,-1061.03205997,0.0001,2]
[352900101,1739397032309,-1702.32794011,0.0001,2]
[352900103,1739397032320,-333.67205989,0.0001,2]
[352900105,1739397032329,-2036.0,0.0001,2]
[352900107,1739397032339,-2036.0,0.0001,2]
[352900109,1739397032349,-2036.0,0.0001,2]
[352900111,1739397032359,-2036.0,0.0001,2]
[352900113,1739397032368,-2036.0,0.0001,2]
[352900115,1739397032378,-3513.98998495,0.0001,2]
[352900119,1739397032405,-1081.0205563,0.0001,2]
[352900121,1739397032416,-286.73075199,0.0001,2]
[352900123,1739397032428,-2556.95623954,0.0001,2]
[352900125,1739397032438,-250.0,0.00010164,2]
[352900127,1739397032447,-400.0,0.00010685,2]
[352900129,1739397032457,-500.0,0.00010958,2]
[352900131,1739397032466,-500.0,0.00010958,2]
[352900133,1739397032475,-500.0,0.00010958,2]
[352900135,1739397032485,-500.0,0.00010958,2]
[352900137,1739397032494,-298.06084003,0.00010958,2]
[352900139,1739397032503,-500.0,0.00010958,2]
[352900141,1739397032513,-500.0,0.00010958,2]
[352900143,1739397032522,-500.0,0.00010958,2]
[352900145,1739397032532,-500.0,0.00010958,2]
[352900147,1739397032541,-500.0,0.00010958,2]
[352900148,1739397032550,-500.0,0.00010958,2]
[352900150,1739397032560,-500.0,0.00010958,2]
[352900151,1739397032569,-500.0,0.00010958,2]
[352900152,1739397032579,-500.0,0.00010958,2]
[352900154,1739397032588,-500.0,0.00010958,2]
[352900156,1739397032597,-582.73,0.00010958,2]
[352900158,1739397032606,-500.0,0.00010958,2]
[352900159,1739397032616,-517.62,0.00010958,2]
[352900160,1739397032625,-553.87,0.00010958,2]
[352900161,1739397032635,-500.0,0.00010958,2]
[352900162,1739397032644,-501.20781837,0.00010958,2]
[352900163,1739397032654,-360.73067272,0.00010958,2]
[352900166,1739397038058,-139.26932728,0.00010958,2]
[352900167,1739397038069,-501.36615242,0.00010958,2]
[352900168,1739397038084,-500.0,0.00010958,2]
[352900170,1739397038093,-500.0,0.00010958,2]
[352900171,1739397038103,-500.0,0.00010958,2]
[352900173,1739397038112,-500.0,0.00010958,2]
[352900174,1739397038122,-500.0,0.00010958,2]
[352900175,1739397038132,-500.0,0.00010958,2]
[352900177,1739397038141,-500.0,0.00010958,2]
[352900178,1739397038152,-500.0,0.00010958,2]